bitfinex-derivatives/quotes_SOLF0:USTF0_20250309
["timestamp","ask_amount","ask_price","bid_price","bid_amount"]
[1741540569794,73.12934416,128.46,128.36,4.1023]
[1741540569990,73.12934416,128.46,128.35,298.72]
[1741540570190,0.05383922,128.44,128.41,0.05977075]
[1741540570383,0.05383922,128.44,128.32,41.46]
[1741540570889,41.46,128.46,128.37,31.66934416]
[1741540571391,41.46,128.46,128.4,7.7893]
[1741540571590,0.05927153,128.43,128.4,0.05400752]
[1741540573690,0.05927153,128.43,128.42,7.7883]
[1741540575295,0.05927153,128.43,128.4,31.72335168]
[1741540575995,0.05927153,128.43,128.42,7.7883]
[1741540576390,0.05927153,128.43,128.4,0.05400752]
[1741540577692,0.05927153,128.43,128.42,7.7883]
[1741540577889,0.05927153,128.43,128.4,0.05400752]
[1741540579798,0.05927153,128.43,128.34,73.08934416]
[1741540579994,4.0052,128.47,128.34,73.08934416]
[1741540580194,8.2749,128.47,128.39,31.66934416]
[1741540580594,41.4,128.46,128.39,31.66934416]
[1741540581101,0.05378031,128.44,128.41,0.05189322]
[1741540581794,7.84098031,128.44,128.41,0.05189322]
[1741540582093,0.05378031,128.44,128.41,0.05189322]
[1741540582498,0.05378031,128.44,128.41,7.84069322]
[1741540582901,0.05378031,128.44,128.41,0.05189322]
[1741540584502,7.7883,128.42,128.41,0.05189322]
[1741540584893,0.05378031,128.44,128.41,0.05189322]
[1741540586098,0.05378031,128.44,128.42,7.7879]
[1741540586302,0.05378031,128.44,128.41,0.05189322]
[1741540586602,7.84148031,128.44,128.41,0.05189322]
[1741540586799,0.05378031,128.44,128.41,0.05189322]
[1741540587203,0.05378031,128.44,128.41,7.84039322]
[1741540587404,0.05378031,128.44,128.41,0.05189322]
[1741540587999,0.05378031,128.44,128.43,7.7877]
[1741540593907,0.05378031,128.44,128.42,7.788]
[1741540594103,0.05378031,128.44,128.41,0.05189322]
[1741540594501,0.05378031,128.44,128.42,7.7878]
[1741540594811,0.05378031,128.44,128.41,0.05189322]
[1741540595611,0.05378031,128.44,128.43,7.7877]
[1741540600621,0.05378031,128.44,128.41,0.05189322]
[1741540601121,0.05378031,128.44,128.43,7.7877]
[1741540601518,0.05378031,128.44,128.41,0.05189322]
[1741540601723,0.05378031,128.44,128.41,7.84059322]
[1741540602423,0.05378031,128.44,128.42,7.7881]
[1741540602824,0.05378031,128.44,128.41,7.84039322]
[1741540603028,0.05378031,128.44,128.41,0.05189322]
[1741540603526,0.05378031,128.44,128.42,7.7878]
[1741540604221,0.05378031,128.44,128.41,7.84059322]
[1741540604727,0.05378031,128.44,128.42,7.7881]
[1741540605225,0.05378031,128.44,128.41,0.05189322]
[1741540605421,0.05378031,128.44,128.42,7.7879]
[1741540607230,7.7877,128.43,128.41,0.05189322]
[1741540607729,41.33378031,128.44,128.41,0.05189322]
[1741540608231,45.54348031,128.44,128.41,0.05189322]
[1741540608731,19.65092923,128.43,128.34,30.43058054]
[1741540608926,23.92062923,128.43,128.34,30.43058054]
[1741540609327,23.92062923,128.43,128.34,19.65092923]
[1741540609727,0.05915229,128.4,128.37,0.05892207]
[1741540610021,41.33915229,128.4,128.37,0.05892207]
[1741540610929,41.33915229,128.4,128.32,19.65092923]
[1741540611129,19.65092923,128.39,128.3,62.19389728]
[1741540611333,7.7935,128.34,128.3,62.19389728]
[1741540611634,41.28,128.36,128.3,42.54296805]
[1741540611826,41.28,128.36,128.3,62.19389728]
[1741540612329,41.28,128.36,128.32,0.05019849]
[1741540612330,0.05241409,128.34,128.32,0.05019849]
[1741540612527,7.7938,128.33,128.32,0.05019849]
[1741540612721,0.05241409,128.34,128.26,30.43058054]
[1741540613128,19.65092923,128.34,128.26,10.77965131]
[1741540613634,7.7951,128.31,128.26,18.57755131]
[1741540613825,49.0751,128.31,128.26,18.57755131]
[1741540614034,0.05196304,128.3,128.27,0.0495913]
[1741540616937,0.05196304,128.3,128.2,12.4503]
[1741540617125,72.80093102,128.31,128.2,12.4503]
[1741540617329,72.80093102,128.31,128.16,74.06389907]
[1741540617330,31.52093102,128.28,128.16,74.06389907]
[1741540617535,7.8003,128.23,128.16,74.06389907]
[1741540617736,49.0603,128.23,128.16,74.06389907]
[1741540617933,0.05622783,128.21,128.18,0.05168007]
[1741540618836,0.05622783,128.21,128.19,7.8023]
[1741540619535,0.05622783,128.21,128.2,7.8017]
[1741540619734,41.28,128.27,128.2,31.52093102]
[1741540619936,233.28,128.3,128.23,31.52093102]
[1741540620136,192.0,128.36,128.27,31.52093102]
[1741540620436,233.26,128.36,128.27,31.52093102]
[1741540620632,199.7924,128.36,128.31,7.7948]
[1741540620832,8.0124,128.39,128.28,31.52093102]
[1741540621131,0.05583079,128.35,128.32,0.05887184]
[1741540623026,7.84843079,128.35,128.32,0.05887184]
[1741540623226,0.05583079,128.35,128.32,0.05887184]
[1741540624538,0.05583079,128.35,128.33,7.7932]
[1741540624726,0.05583079,128.35,128.32,0.05887184]
[1741540625727,0.05583079,128.35,128.25,3.9594]
[1741540625937,31.52093102,128.34,128.25,3.9594]
[1741540626242,41.24,128.33,128.25,3.9594]
[1741540626933,0.05545764,128.3,128.28,0.05748242]
[1741540627236,192.0,128.38,128.27,72.76093102]
[1741540627439,7.7909,128.38,128.3,31.52093102]
[1741540627639,4.0414,128.39,128.3,31.52093102]
[1741540628041,4.0414,128.39,128.28,41.24]
[1741540628237,4.0414,128.39,128.27,31.52093102]
[1741540628538,31.57713444,128.36,128.26,3.9159]
[1741540628743,45.2875,128.35,128.26,3.9159]
[1741540629143,41.22,128.35,128.26,3.9159]
[1741540629337,41.22,128.35,128.26,45.1359]
[1741540629537,41.22,128.35,128.26,3.9159]
[1741540629737,0.05182093,128.32,128.29,0.05302244]
[1741540630142,0.05182093,128.32,128.3,7.7952]
[1741540630341,0.05182093,128.32,128.29,0.05302244]
[1741540632144,7.7953,128.31,128.29,0.05302244]
[1741540632945,7.7956,128.3,128.29,0.05302244]
[1741540633248,0.05182093,128.32,128.29,0.05302244]
[1741540633444,0.05182093,128.32,128.31,7.795]
[1741540633645,31.52093102,128.4,128.3,49.3929]
[1741540634146,45.4575,128.38,128.28,31.52093102]
[1741540634348,31.52093102,128.4,128.3,4.2586]
[1741540634544,7.7917,128.37,128.32,7.7942]
[1741540634841,0.05191135,128.36,128.34,0.05762519]
[1741540635241,3.94,128.41,128.34,0.05762519]
[1741540635947,31.52093102,128.4,128.34,0.05762519]
[1741540636347,7.7912,128.38,128.34,0.05762519]
[1741540636553,7.848174,128.38,128.34,0.05762519]
[1741540636839,0.056974,128.38,128.34,0.05762519]
[1741540637039,41.256974,128.38,128.34,0.05762519]
[1741540637446,31.52093102,128.37,128.29,257.26]
[1741540637643,35.67243102,128.37,128.26,4.27]
[1741540638037,31.52093102,128.34,128.23,4.1634]
[1741540638243,31.52093102,128.32,128.18,4.27]
[1741540638445,31.52093102,128.29,128.18,49.6134]
[1741540638641,0.05443534,128.26,128.19,31.52093102]
[1741540638844,41.18,128.34,128.22,31.52093102]
[1741540639041,7.7954,128.31,128.22,72.70093102]
[1741540639550,7.7954,128.31,128.26,7.7978]
[1741540639744,72.70093102,128.34,128.22,72.70093102]
[1741540640143,0.05621208,128.29,128.28,7.7968]
[1741540640545,72.70093102,128.34,128.22,72.70093102]
[1741540640745,0.05063996,128.3,128.27,0.05827363]
[1741540641849,0.05063996,128.3,128.29,7.7962]
[1741540642447,0.05063996,128.3,128.28,7.7967]
[1741540642847,0.05063996,128.3,128.27,0.05827363]
[1741540643047,41.21063996,128.3,128.27,0.05827363]
[1741540643242,72.73157098,128.3,128.27,0.05827363]
[1741540643446,11.9053,128.29,128.2,8.3339]
[1741540643752,31.52093102,128.28,128.16,31.52093102]
[1741540643948,39.52403102,128.28,128.16,31.52093102]
[1741540644252,31.52093102,128.26,128.16,31.52093102]
[1741540644457,41.16,128.25,128.16,31.52093102]
[1741540644646,0.05599555,128.22,128.2,0.05197482]
[1741540645046,41.16,128.21,128.15,12.2656]
[1741540645351,41.16,128.25,128.17,31.52093102]
[1741540645853,41.16,128.25,128.16,41.16]
[1741540646251,0.05890413,128.22,128.19,0.05807687]
[1741540646750,0.05890413,128.22,128.19,7.86017687]
[1741540646951,0.05890413,128.22,128.19,0.05807687]
[1741540647344,0.05890413,128.22,128.21,7.8011]
[1741540647549,41.16,128.28,128.2,41.16]
[1741540647754,45.3577,128.31,128.21,4.2906]
[1741540647953,45.3577,128.31,128.24,7.7988]
[1741540648356,31.52093102,128.3,128.21,4.2906]
[1741540648654,31.52093102,128.3,128.24,0.04987238]
[1741540648851,45.3577,128.31,128.24,0.04987238]
[1741540648852,0.05433242,128.26,128.24,0.04987238]
[1741540649062,0.05433242,128.26,128.25,7.7982]
[1741540649350,0.05433242,128.26,128.24,0.04987238]
[1741540651259,0.05433242,128.26,128.25,7.7986]
[1741540651454,0.05433242,128.26,128.24,0.04987238]
[1741540652155,41.19433242,128.26,128.24,0.04987238]
[1741540653856,41.19433242,128.26,128.25,7.7986]
[1741540654052,0.05433242,128.26,128.25,7.7986]
[1741540655159,0.05433242,128.26,128.24,0.04987238]
[1741540658761,0.05433242,128.26,128.25,7.7986]
[1741540659552,200.3082,128.36,128.24,31.5708034]
[1741540659863,7.7933,128.34,128.25,8.1359]
[1741540660053,41.12,128.35,128.25,8.1359]
[1741540660257,200.3082,128.36,128.25,8.1359]
[1741540660258,31.52093102,128.34,128.25,8.1359]
[1741540660561,41.12,128.33,128.27,7.797]
[1741540660757,0.04935945,128.31,128.28,0.05232569]
[1741540661663,7.7957,128.3,128.28,0.05232569]
[1741540661864,0.04935945,128.31,128.28,0.05232569]
[1741540662157,7.7962,128.29,128.28,0.05232569]
[1741540662363,41.1,128.29,128.22,31.52093102]
[1741540662560,41.1,128.29,128.24,7.7991]
[1741540662767,7.798,128.26,128.21,261.372]
[1741540662953,72.62093102,128.29,128.2,7.8014]
[1741540663258,31.52093102,128.27,128.18,3.9749]
[1741540663560,0.05532906,128.26,128.23,0.05404599]
[1741540663867,7.85372906,128.26,128.23,0.05404599]
[1741540664056,0.05532906,128.26,128.23,0.05404599]
[1741540665360,0.05532906,128.26,128.23,7.85354599]
[1741540666063,0.05532906,128.26,128.23,0.05404599]
[1741540667060,0.05532906,128.26,128.24,7.7988]
[1741540667661,0.05532906,128.26,128.23,0.05404599]
[1741540667860,41.13532906,128.26,128.23,0.05404599]
[1741540668566,7.7992,128.24,128.23,0.05404599]
[1741540668965,7.8015,128.21,128.18,7.8026]
[1741540669359,7.8015,128.21,128.14,31.52093102]
[1741540669559,41.08,128.22,128.14,31.52093102]
[1741540670165,0.04980931,128.2,128.19,7.8022]
[1741540671165,45.2235,128.28,128.18,31.52093102]
[1741540671463,45.2235,128.28,128.19,8.0441]
[1741540671664,7.7983,128.26,128.19,8.0441]
[1741540671865,45.2235,128.28,128.19,8.0441]
[1741540672266,0.05601258,128.25,128.24,7.7987]
[1741540672663,41.08,128.31,128.23,0.05224567]
[1741540672966,41.08,128.31,128.21,41.08]
[1741540673663,0.05395842,128.27,128.25,0.05391157]
[1741540673856,7.798,128.26,128.25,0.05391157]
[1741540674359,0.05395842,128.27,128.25,0.05391157]
[1741540674962,7.798,128.26,128.25,0.05391157]
[1741540675157,41.11395842,128.27,128.25,0.05391157]
[1741540676766,7.798,128.26,128.25,0.05391157]
[1741540676968,41.11395842,128.27,128.19,4.074]
[1741540677264,41.06,128.27,128.19,4.074]
[1741540677473,45.0068,128.27,128.19,4.074]
[1741540677770,31.52093102,128.26,128.17,4.0523]
[1741540678169,0.05963176,128.23,128.2,0.05099962]
[1741540678369,7.8005,128.22,128.2,0.05099962]
[1741540678768,7.8017,128.2,128.14,18.73845131]
[1741540679173,41.04,128.23,128.14,18.73845131]
[1741540679472,31.52093102,128.22,128.14,10.77965131]
[1741540679675,31.52093102,128.2,128.11,10.77965131]
[1741540679875,7.8047,128.16,128.11,10.77965131]
[1741540680277,7.8047,128.16,128.12,0.05874168]
[1741540680474,0.05696813,128.15,128.12,7.86474168]
[1741540680874,0.05696813,128.15,128.12,0.05874168]
[1741540681065,56.903797,128.25,128.18,7.8027]
[1741540681373,56.903797,128.25,128.12,35.56673102]
[1741540681374,31.52093102,128.24,128.12,35.56673102]
[1741540681571,7.8031,128.18,128.13,7.8057]
[1741540681767,41.04,128.2,128.12,4.0458]
[1741540682166,0.0554794,128.17,128.15,0.05568988]
[1741540682573,7.8041,128.16,128.15,0.05568988]
[1741540683070,48.8441,128.16,128.15,0.05568988]
[1741540683569,41.04,128.16,128.11,10.77965131]
[1741540683778,7.8049,128.15,128.11,10.77965131]
[1741540683979,41.04,128.16,128.09,7.8081]
[1741540684374,41.04,128.16,128.06,31.52093102]
[1741540684579,41.04,128.16,128.06,72.54093102]
[1741540684780,0.05440226,128.12,128.1,0.05200737]
[1741540686469,7.86140226,128.12,128.1,0.05200737]
[1741540686671,0.05440226,128.12,128.1,0.05200737]
[1741540687682,7.8071,128.11,128.1,0.05200737]
[1741540687976,41.09440226,128.12,128.1,0.05200737]
[1741540688172,41.09440226,128.12,128.01,41.04]
[1741540688376,41.04,128.12,128.02,31.52093102]
[1741540688767,41.04,128.12,128.04,31.52093102]
[1741540688970,31.52093102,128.15,128.05,12.568]
[1741540689171,7.8076,128.11,128.06,7.8101]
[1741540689380,0.05906039,128.11,128.09,0.05636082]
[1741540692685,0.05906039,128.11,128.1,7.8078]
[1741540694771,3.9191,128.16,128.09,0.05636082]
[1741540694772,258.79865852,128.2,128.09,0.05636082]
[1741540694975,41.02,128.18,128.14,7.8053]
[1741540695184,7.8039,128.17,128.08,41.02]
[1741540695385,41.02,128.18,128.08,41.02]
[1741540696087,41.0,128.25,128.19,7.8022]
[1741540696284,72.52093102,128.25,128.14,48.942]
[1741540696477,0.05053957,128.23,128.14,48.942]
[1741540696678,31.52093102,128.25,128.18,0.05003959]
[1741540696883,0.05051891,128.2,128.18,0.05003959]
[1741540697078,41.0,128.25,128.18,0.05003959]
[1741540697283,0.05044998,128.2,128.18,0.05003959]
[1741540697495,45.0303,128.27,128.18,41.05003959]
[1741540697676,4.0303,128.27,128.18,41.05003959]
[1741540697880,41.0,128.26,128.18,41.0]
[1741540698277,7.8005,128.22,128.16,31.52093102]
[1741540698689,0.05483549,128.2,128.18,0.05839922]
[1741540698882,7.8,128.23,128.16,31.52093102]
[1741540699089,41.0,128.26,128.16,31.52093102]
[1741540699290,0.05723421,128.21,128.18,0.05755587]
[1741540699586,7.7985,128.26,128.16,31.52093102]
[1741540699993,7.7976,128.27,128.16,31.52093102]
[1741540700189,7.7976,128.27,128.18,31.52093102]
[1741540700390,7.7976,128.27,128.22,7.8]
[1741540700591,0.05574904,128.24,128.22,7.8]
[1741540700988,0.05574904,128.24,128.23,7.7998]
[1741540701188,0.05574904,128.24,128.21,0.05940718]
[1741540701585,7.7998,128.23,128.21,0.05940718]
[1741540702191,0.05574904,128.24,128.23,7.7998]
[1741540702996,0.05574904,128.24,128.22,7.8002]
[1741540703897,0.05574904,128.24,128.21,0.05940718]
[1741540704096,0.05574904,128.24,128.23,7.7998]
[1741540705598,0.05574904,128.24,128.21,0.05940718]
[1741540705800,7.8004,128.22,128.21,0.05940718]
[1741540706101,31.52093102,128.23,128.21,0.05940718]
[1741540706301,7.8004,128.23,128.21,0.05940718]
[1741540706797,0.05574904,128.24,128.21,0.05940718]
[1741540708907,0.05574904,128.24,128.23,7.7998]
[1741540709307,0.05574904,128.24,128.21,0.05940718]
[1741540709708,7.8002,128.23,128.21,0.05940718]
[1741540710105,0.05574904,128.24,128.21,0.05940718]
[1741540710312,7.85524904,128.24,128.21,0.05940718]
[1741540710614,0.05574904,128.24,128.21,7.86010718]
[1741540710813,0.05574904,128.24,128.21,0.05940718]
[1741540711207,0.05574904,128.24,128.22,7.8]
[1741540711407,0.05574904,128.24,128.21,0.05940718]
[1741540711613,0.05574904,128.24,128.22,7.8001]
[1741540711803,0.05574904,128.24,128.21,0.05940718]
[1741540712809,7.8004,128.22,128.21,0.05940718]
[1741540713004,40.92,128.23,128.15,298.48]
[1741540713005,40.92,128.23,128.15,257.56]
[1741540713207,7.8035,128.17,128.13,7.8057]
[1741540713408,72.44093102,128.19,128.11,4.1854]
[1741540713612,31.52093102,128.17,128.11,4.1854]
[1741540714314,0.05489389,128.15,128.14,7.8053]
[1741540714617,40.92,128.19,128.13,0.05977792]
[1741540714810,0.05885211,128.16,128.13,0.05977792]
[1741540715007,0.05885211,128.16,128.15,7.8047]
[1741540715207,7.8015,128.21,128.11,4.1854]
[1741540715208,0.05650853,128.17,128.14,0.05598622]
[1741540716313,7.8045,128.16,128.14,0.05598622]
[1741540717516,0.05650853,128.17,128.14,0.05598622]
[1741540719316,31.52093102,128.15,128.03,257.5]
[1741540719517,31.52093102,128.13,128.07,7.8094]
[1741540719712,31.52093102,128.13,128.04,4.1662]
[1741540720113,40.9,128.13,128.04,35.68713102]
[1741540720514,0.05091318,128.1,128.07,0.05416233]
[1741540720910,40.9,128.09,128.07,0.05416233]
[1741540722008,0.05091318,128.1,128.07,0.05416233]
[1741540722214,0.05091318,128.1,128.09,7.8084]
[1741540723117,40.9,128.14,128.13,7.8059]
[1741540723312,52.8091,128.17,128.08,4.0977]
[1741540723613,45.0056,128.17,128.08,4.0977]
[1741540724119,40.9,128.17,128.08,76.49863102]
[1741540724317,0.05911899,128.14,128.13,7.8054]
[1741540724712,0.05911899,128.14,128.11,7.8068]
[1741540725019,0.05911899,128.14,128.12,0.05081335]
[1741540725920,31.58005001,128.14,128.12,0.05081335]
[1741540726223,40.88,128.13,128.04,8.3302]
[1741540726415,44.8875,128.13,128.04,8.3302]
[1741540727316,0.05385509,128.1,128.07,0.04996303]
[1741540727723,0.05385509,128.1,128.07,7.85926303]
[1741540728116,0.05385509,128.1,128.07,0.04996303]
[1741540728321,0.05385509,128.1,128.08,7.809]
[1741540728618,0.05385509,128.1,128.07,0.04996303]
[1741540728920,0.05385509,128.1,128.08,7.809]
[1741540729112,0.05385509,128.1,128.07,0.04996303]
[1741540729315,0.05385509,128.1,128.08,7.809]
[1741540730316,0.05385509,128.1,128.07,0.04996303]
[1741540730520,0.05385509,128.1,128.08,7.8086]
[1741540731320,0.05385509,128.1,128.09,7.8084]
[1741540732624,0.05385509,128.1,128.07,0.04996303]
[1741540733026,7.8088,128.09,128.07,0.04996303]
[1741540733226,40.86,128.09,128.07,0.04996303]
[1741540733722,48.6685,128.09,128.07,0.04996303]
[1741540734028,40.86,128.09,128.07,0.04996303]
[1741540734425,48.6686,128.09,128.07,0.04996303]
[1741540734927,40.86,128.09,128.07,0.04996303]
[1741540737422,40.86,128.09,128.07,7.85946303]
[1741540738129,39.38298611,128.1,128.07,0.04996303]
[1741540738130,0.05385509,128.1,128.07,0.04996303]
[1741540738832,7.86185509,128.1,128.07,0.04996303]
[1741540739233,0.05385509,128.1,128.07,0.04996303]
[1741540740231,0.05385509,128.1,128.09,7.8084]
[1741540740433,0.05385509,128.1,128.07,0.04996303]
[1741540741131,7.809,128.08,128.07,0.04996303]
[1741540741438,40.89385509,128.1,128.07,0.04996303]
[1741540742124,31.52093102,128.08,128.0,12.6582]
[1741540742330,7.8106,128.06,128.02,7.8125]
[1741540742527,3.9966,128.07,128.0,12.6582]
[1741540742733,72.36093102,128.06,127.97,261.7484]
[1741540742938,7.813,128.02,127.97,257.7]
[1741540743131,40.84,128.02,127.97,257.7]
[1741540743526,0.05707392,128.01,127.98,0.04930831]
[1741540744638,0.05707392,128.01,128.0,7.8139]
[1741540744838,3.9966,128.07,127.98,31.57023933]
[1741540745041,196.0605,128.13,128.02,31.52093102]
[1741540745237,40.84,128.12,128.03,7.9405]
[1741540745437,72.36093102,128.12,128.03,7.9405]
[1741540745738,48.6468,128.12,128.03,7.9405]
[1741540746132,0.05813985,128.09,128.06,0.05551149]
[1741540746932,0.05813985,128.09,128.07,7.8096]
[1741540747136,0.05813985,128.09,128.06,0.05551149]
[1741540748138,0.05813985,128.09,128.08,7.809]
[1741540748334,223.52093102,128.18,128.06,72.39644251]
[1741540748539,40.82,128.18,128.08,31.52093102]
[1741540748840,72.34093102,128.18,128.08,31.52093102]
[1741540749138,72.34093102,128.18,128.06,72.34093102]
[1741540749334,4.048,128.19,128.08,31.52093102]
[1741540749536,4.048,128.19,128.12,31.52093102]
[1741540749936,4.048,128.19,128.13,4.1948]
[1741540750342,4.048,128.19,128.16,7.8037]
[1741540750536,44.9531,128.21,128.16,7.8037]
[1741540750737,44.9531,128.21,128.13,4.1948]
[1741540750943,0.05865682,128.19,128.16,0.05124472]
[1741540754042,40.83865682,128.19,128.16,0.05124472]
[1741540754432,40.83865682,128.19,128.11,4.2729]
[1741540754433,31.52093102,128.18,128.11,4.2729]
[1741540754743,35.47233102,128.18,128.09,4.1635]
[1741540754948,4.2885,128.17,128.09,4.1635]
[1741540755844,0.05985127,128.14,128.12,0.05461729]
[1741540756645,40.76,128.21,128.12,0.05461729]
[1741540756941,40.76,128.21,128.09,35.68443102]
[1741540757844,7.8048,128.15,128.14,0.04952175]
[1741540758046,72.28093102,128.16,128.07,257.62]
[1741540758248,31.52093102,128.14,128.07,257.62]
[1741540758447,7.8084,128.09,128.07,257.62]
[1741540758741,72.28093102,128.12,128.06,4.2729]
[1741540758947,7.8095,128.08,128.03,77.75764839]
[1741540759148,7.8095,128.08,128.03,69.94584839]
[1741540759447,7.8106,128.06,128.04,0.05998164]
[1741540759644,0.05385974,128.07,128.04,0.05998164]
[1741540760243,7.8108,128.05,128.04,0.05998164]
[1741540760643,7.8108,128.05,127.98,40.76]
[1741540760840,3.9291,128.07,128.0,7.8138]
[1741540761047,7.8104,128.06,127.98,40.76]
[1741540761348,40.76,128.08,128.0,31.52093102]
[1741540761846,40.76,128.11,128.06,7.8101]
[1741540762041,1.434e-05,128.05,128.04,8.3314]
[1741540762246,40.76,128.14,128.1,7.8075]
[1741540762548,40.76,128.14,128.07,40.74]
[1741540762741,31.52093102,128.16,128.07,40.74]
[1741540762947,31.52093102,128.16,128.07,48.5492]
[1741540763146,35.71643102,128.16,128.04,297.49233102]
[1741540763342,0.0500702,128.13,128.1,7.86164889]
[1741540763540,0.0500702,128.13,128.1,0.05394889]
[1741540764540,0.0500702,128.13,128.11,7.8069]
[1741540764739,0.0500702,128.13,128.1,0.05394889]
[1741540765646,7.8561702,128.13,128.1,0.05394889]
[1741540765843,0.0500702,128.13,128.1,0.05394889]
[1741540770455,0.0500702,128.13,128.11,7.8071]
[1741540770856,0.0500702,128.13,128.1,0.05394889]
[1741540771054,0.0500702,128.13,128.12,7.8065]
[1741540771263,0.0500702,128.13,128.1,0.05394889]
[1741540772062,0.0500702,128.13,128.1,7.86144889]
[1741540773160,7.8560702,128.13,128.1,7.86144889]
[1741540773763,0.0500702,128.13,128.1,0.05394889]
[1741540773961,40.7500702,128.13,128.1,0.05394889]
[1741540774466,7.8071,128.11,128.1,0.05394889]
[1741540775165,0.0500702,128.13,128.1,0.05394889]
[1741540776268,7.8071,128.11,128.1,0.05394889]
[1741540776466,0.0500702,128.13,128.1,0.05394889]
[1741540776871,92.01869629,128.12,128.04,261.8897]
[1741540777065,100.45699629,128.12,128.04,257.64]
[1741540777263,7.8094,128.08,128.04,265.4511]
[1741540777462,100.45699629,128.12,128.04,265.4511]
[1741540777463,100.45699629,128.12,128.04,257.64]
[1741540778063,0.05417312,128.09,128.07,0.0538891]
[1741540778266,7.8104,128.06,128.03,7.8117]
[1741540778571,51.31869629,128.07,128.0,8.3167]
[1741540778764,40.68,128.08,128.0,8.3167]
[1741540778963,7.8105,128.06,128.02,7.8123]
[1741540779160,40.68,128.08,128.0,8.3167]
[1741540779366,51.31869629,128.03,127.97,42.54296805]
[1741540779566,7.8145,127.99,127.97,42.54296805]
[1741540780162,44.8222,128.02,127.97,42.54296805]
[1741540780163,7.8151,127.98,127.97,42.54296805]
[1741540780468,48.4951,127.98,127.97,42.54296805]
[1741540782275,40.68,127.98,127.97,42.54296805]
[1741540782972,91.99869629,127.98,127.97,31.60499764]
[1741540783372,103.90129629,127.98,127.97,31.60499764]
[1741540783675,96.08619629,127.98,127.96,0.05675701]
[1741540784067,7.8157,127.97,127.96,0.05675701]
[1741540785070,7.8169,127.95,127.9,15.9752]
[1741540785372,76.45538847,127.98,127.91,7.8189]
[1741540785572,7.8163,127.96,127.9,8.1554]
[1741540785769,31.68788847,127.94,127.87,4.1989]
[1741540785973,40.68,127.93,127.86,289.26499764]
[1741540786175,0.05140983,127.92,127.86,31.60499764]
[1741540786375,31.7392983,127.92,127.86,31.60499764]
[1741540786576,31.68788847,127.9,127.86,31.60499764]
[1741540786880,48.5206,127.89,127.86,31.60499764]
[1741540787177,48.5756593,127.89,127.86,31.60499764]
[1741540787377,40.7550593,127.89,127.86,31.60499764]
[1741540788172,40.7550593,127.89,127.83,4.1482]
[1741540788173,7.8215,127.88,127.83,4.1482]
[1741540788367,40.7550593,127.89,127.82,8.3189]
[1741540788576,40.7,127.89,127.82,8.3189]
[1741540788769,0.05783317,127.87,127.82,8.3189]
[1741540788974,0.05783317,127.87,127.85,7.8226]
[1741540789281,0.05783317,127.87,127.82,8.3189]
[1741540789481,0.05783317,127.87,127.85,7.8229]
[1741540789979,0.05783317,127.87,127.82,8.3189]
[1741540790177,31.68788847,127.92,127.82,40.00678847]
[1741540790178,40.68,127.92,127.82,40.00678847]
[1741540790378,40.68,127.92,127.82,35.96988847]
[1741540790877,72.36788847,127.92,127.82,35.96988847]
[1741540791079,72.36788847,127.92,127.82,4.282]
[1741540791279,0.0546657,127.88,127.86,0.05238363]
[1741540792579,31.68788847,127.87,127.76,31.68788847]
[1741540792882,31.68788847,127.87,127.79,7.8263]
[1741540793082,31.68788847,127.87,127.76,49.1356]
[1741540793476,31.68788847,127.85,127.76,49.1356]
[1741540793673,40.68,127.84,127.76,8.4556]
[1741540793883,0.05632425,127.82,127.76,7.8283]
[1741540794084,0.05632425,127.82,127.73,8.4556]
[1741540794584,0.05320877,127.79,127.73,8.4556]
[1741540794983,0.05320877,127.79,127.76,7.8281]
[1741540795374,0.05320877,127.79,127.74,3.9837]
[1741540795578,0.05320877,127.79,127.76,7.8284]
[1741540795786,0.05320877,127.79,127.74,3.9837]
[1741540795984,0.05320877,127.79,127.76,7.828]
[1741540796186,0.05320877,127.79,127.74,3.9837]
[1741540797281,51.61511948,127.98,127.74,3.9837]
[1741540797477,92.29511948,127.86,127.75,92.29511948]
[1741540797877,92.29511948,127.86,127.75,40.68]
[1741540798078,51.61511948,127.81,127.76,7.8283]
[1741540798388,92.29511948,127.81,127.74,3.9837]
[1741540798586,0.05251145,127.8,127.77,0.05573602]
[1741540798884,7.87891145,127.8,127.77,0.05573602]
[1741540799088,0.05251145,127.8,127.77,0.05573602]
[1741540801387,40.68,127.85,127.77,0.05573602]